bitfinex/quotes_ETHUSD_20240718
["timestamp","ask_amount","ask_price","bid_price","bid_amount"]
[1721317762309,0.60497395,3407.0,3406.4,2.93559]
[1721317762723,3.54015395,3407.0,3406.2,5.87151]
[1721317763043,0.60497395,3406.9,3406.2,5.87151]
[1721317763247,0.60497395,3406.9,3406.3,2.93572]
[1721317763637,0.55,3406.8,3406.1,2.9359]
[1721317763944,2.93548,3406.6,3405.9,2.936]
[1721317764155,0.60497395,3406.7,3405.9,2.936]
[1721317764463,4.98767365,3406.7,3405.9,2.936]
[1721317764612,2.93584,3406.2,3405.1,2.3605]
[1721317764828,2.936,3406.0,3405.3,2.93655]
[1721317765052,2.936,3406.0,3405.4,0.04281537]
[1721317765552,2.936,3406.0,3405.1,5.29722]
[1721317765740,2.936,3406.0,3405.2,0.529722]
[1721317765938,2.936,3406.0,3405.4,2.9365]
[1721317766129,2.93618,3405.8,3405.2,0.529722]
[1721317766309,2.93618,3405.8,3405.5,0.04276368]
[1721317766516,2.93618,3405.8,3405.1,2.93672]
[1721317766726,2.93618,3405.8,3404.9,2.93689]
[1721317766727,2.93625,3405.7,3405.6,0.04271198]
[1721317766970,2.93625,3405.7,3404.7,2.4077]
[1721317766971,2.93651,3405.4,3404.7,2.98424]
[1721317767473,3.8124244,3405.4,3404.7,0.0472]
[1721317767765,4.41739835,3405.4,3404.7,0.0472]
[1721317768329,4.41743835,3405.4,3404.7,0.0472]
[1721317768651,2.93677,3405.1,3404.7,0.0472]
[1721317768862,2.93694,3404.9,3404.7,0.0472]
[1721317769442,2.93687,3405.0,3404.7,0.0472]
[1721317770326,2.93687,3405.0,3404.8,0.0432161]
[1721317770723,2.93687,3405.0,3404.7,0.0472]
[1721317770924,0.64785239,3405.0,3404.7,0.0472]
[1721317771211,2.937,3404.9,3404.8,0.0432161]
[1721317771438,2.937,3404.9,3404.7,0.0472]
[1721317771715,2.93684,3405.1,3404.8,0.0432161]
[1721317772410,2.93684,3405.1,3404.7,0.0472]
[1721317772616,2.93687,3405.0,3404.7,0.0472]
[1721317772845,0.587371,3404.9,3404.7,0.0472]
[1721317773149,2.93689,3405.0,3404.7,0.0472]
[1721317773352,2.93695,3404.9,3404.7,0.0472]
[1721317773651,2.93689,3405.0,3404.7,0.0472]
[1721317773854,2.93669,3405.2,3404.7,0.0472]
[1721317774026,3.48677,3405.1,3404.7,0.0472]
[1721317774358,4.27720484,3405.1,3404.7,0.0472]
[1721317774905,1.34043484,3405.1,3404.7,0.0472]
[1721317775015,3.0,3405.5,3404.7,2.98425]
[1721317775220,3.0,3405.5,3404.9,2.93692]
[1721317775476,7.28,3405.6,3404.7,0.0472]
[1721317775762,7.28,3405.6,3405.4,2.93651]
[1721317775977,5.36413,3406.1,3405.2,2.93661]
[1721317775978,2.93602,3406.0,3405.2,2.93661]
[1721317776335,2.93599,3406.0,3405.2,2.93661]
[1721317776521,12.64413,3406.1,3405.3,2.93659]
[1721317776949,12.64413,3406.1,3405.1,2.93675]
[1721317776950,2.93608,3405.9,3405.1,2.93675]
[1721317777149,9.7082,3406.1,3405.1,3.524115]
[1721317777351,2.93622,3405.8,3405.1,2.93675]
[1721317778135,9.7082,3406.1,3405.2,2.93668]
[1721317778136,2.93606,3406.0,3405.2,2.93668]
[1721317778469,2.9361,3405.9,3405.2,2.93668]
[1721317778624,9.7082,3406.1,3405.3,2.93655]
[1721317778959,3.48604,3406.0,3405.3,2.93655]
[1721317779123,2.93622,3405.8,3405.1,2.9367]
[1721317779631,2.93622,3405.8,3405.2,0.0416978]
[1721317779832,1.48570218,3406.0,3405.2,0.0416978]
[1721317780035,2.93659,3405.3,3404.7,0.0472]
[1721317780223,3.0,3405.9,3404.8,0.04190463]
[1721317780224,7.28,3405.6,3404.8,0.04190463]
[1721317780421,2.93683,3405.1,3404.7,0.0472]
[1721317781288,2.93673,3405.2,3404.8,0.04190463]
[1721317781952,2.93673,3405.2,3404.7,0.0472]
[1721317782769,3.0,3405.5,3405.0,2.9368]
[1721317782955,7.28,3405.6,3404.8,2.97886463]
[1721317783289,0.68749729,3405.5,3404.9,2.93693]
[1721317783455,7.28,3405.6,3404.9,2.97878292]
[1721317783786,2.93643,3405.5,3404.9,0.04185292]
[1721317784191,7.28,3405.6,3404.9,2.97878292]
[1721317784551,7.28,3405.6,3405.0,2.93685]
[1721317784987,7.28,3405.6,3405.1,0.04174951]
[1721317785490,1.021625,3405.5,3405.1,0.04174951]
[1721317785856,2.93674,3405.2,3404.7,0.0472]
[1721317786054,2.93677,3405.1,3404.8,0.04190463]
[1721317786866,2.93666,3405.3,3404.8,0.04190463]
[1721317787294,7.28,3405.6,3405.0,2.93682]
[1721317787657,7.28,3405.6,3405.1,0.04186892]
[1721317787857,8.895248,3405.6,3405.1,0.04186892]
[1721317788285,11.831658,3405.6,3405.1,0.04186892]
[1721317788452,8.895248,3405.6,3405.1,0.04186892]
[1721317788653,8.895248,3405.6,3405.1,2.93676]
[1721317788654,7.28,3405.6,3405.1,2.93676]
[1721317788857,7.28,3405.6,3405.2,0.04181721]
[1721317789097,7.28,3405.6,3405.2,2.93661]
[1721317789263,7.28,3405.6,3405.3,0.04176551]
[1721317789593,7.28,3405.6,3405.2,2.93662]
[1721317789799,7.28,3405.6,3405.4,0.04171382]
[1721317789974,7.28,3406.1,3405.3,0.04176551]
[1721317790295,7.28,3406.1,3405.8,2.93616]
[1721317790511,7.28,3406.1,3405.6,2.93626]
[1721317790660,7.28,3406.1,3405.9,0.04142125]
[1721317790863,8.301565,3406.1,3405.4,2.93647]
[1721317791169,7.28,3406.1,3405.5,2.9364]
[1721317791369,7.28,3406.1,3405.5,2.978028]
[1721317792582,7.28,3406.1,3405.5,0.041628]
[1721317792792,2.93608,3405.9,3405.5,0.041628]
[1721317792991,2.93608,3405.9,3405.2,2.93667]
[1721317793191,2.93626,3405.7,3405.0,2.93679]
[1721317793393,2.93626,3405.7,3405.3,0.04166316]
[1721317793563,2.93626,3405.7,3405.1,2.93675]
[1721317794061,2.93626,3405.7,3405.2,0.04171486]
[1721317794303,3.6798499,3405.7,3405.2,0.04171486]
[1721317795310,2.93634,3405.6,3405.3,0.04166316]
[1721317795688,2.93634,3405.6,3405.0,2.93681]
[1721317795892,2.93634,3405.6,3405.4,0.04161146]
[1721317796115,0.7435899,3405.7,3404.4,2.93734]
[1721317796414,2.93684,3405.1,3404.4,2.93734]
[1721317796561,2.93684,3405.1,3404.8,0.04192169]
[1721317797209,2.93694,3404.9,3404.8,0.04192169]
[1721317797503,3.54181395,3405.1,3404.8,0.04059322]
[1721317797504,2.93684,3405.1,3404.8,0.04059322]
[1721317798010,2.93689,3405.0,3404.8,0.04059322]
[1721317798222,2.93684,3405.1,3404.8,0.04059322]
[1721317798401,2.93684,3405.1,3404.4,2.93732]
[1721317798579,2.93684,3405.1,3404.2,2.93747]
[1721317798580,2.93693,3405.0,3404.2,2.93747]
[1721317798898,2.93693,3405.0,3404.8,0.04059322]
[1721317799112,2.93694,3404.9,3404.8,0.04059322]
[1721317799622,8.32456,3404.8,3404.3,0.1477146]
[1721317799828,14.13488033,3404.8,3404.3,0.1477146]
[1721317800119,17.74041716,3404.8,3404.3,0.1477146]
[1721317800265,14.80317847,3404.8,3404.3,0.1477146]
[1721317800465,16.22738016,3404.8,3404.3,0.1477146]
[1721317800868,17.43764954,3404.8,3404.3,0.1477146]
[1721317801062,17.74014212,3404.8,3404.3,0.1477146]
[1721317801313,20.67717212,3404.8,3404.3,0.1477146]
[1721317801509,19.16441016,3404.8,3404.7,1e-05]
[1721317801716,20.97825596,3404.8,3404.7,1e-05]
[1721317802020,19.16441016,3404.8,3404.7,1e-05]
[1721317802768,16.22738016,3404.8,3404.7,1e-05]
[1721317802970,17.73869228,3404.8,3404.7,1e-05]
[1721317803207,17.73863902,3404.8,3404.7,1e-05]
[1721317803516,17.73820516,3404.8,3404.7,1e-05]
[1721317803688,17.73818363,3404.8,3404.7,1e-05]
[1721317803872,17.7381938,3404.8,3404.7,1e-05]
[1721317804190,16.22738016,3404.8,3404.7,1e-05]
[1721317804969,12.74035016,3404.8,3404.7,1e-05]
[1721317805169,13.64701833,3404.8,3404.7,1e-05]
[1721317805413,12.74035016,3404.8,3404.7,1e-05]
[1721317805783,13.34473954,3404.8,3404.7,1e-05]
[1721317806317,13.34468392,3404.8,3404.7,1e-05]
[1721317806609,16.16391016,3404.8,3404.7,1e-05]
[1721317806795,19.3658203,3404.8,3404.7,1e-05]
[1721317807915,22.3028503,3404.8,3404.7,1e-05]
[1721317808105,22.67320323,3404.8,3404.7,1e-05]
[1721317808691,22.3028503,3404.8,3404.7,1e-05]
[1721317808890,19.3658203,3404.8,3404.7,1e-05]
[1721317810574,22.3028503,3404.8,3404.7,1e-05]
[1721317810776,19.3658203,3404.8,3404.7,1e-05]
[1721317813292,16.4287903,3404.8,3404.7,1e-05]
[1721317813492,15.8787903,3404.8,3404.7,1e-05]
[1721317813920,12.9417603,3404.8,3404.7,1e-05]
[1721317814295,15.8787903,3404.8,3404.7,1e-05]
[1721317814555,12.9417603,3404.8,3404.7,1e-05]
[1721317814709,6.17997014,3404.8,3404.7,1e-05]
[1721317815316,3.24294014,3404.8,3404.7,1e-05]
[1721317815628,6.17997014,3404.8,3404.7,1e-05]
[1721317816144,9.72997014,3404.8,3404.7,1e-05]
[1721317816351,6.79294014,3404.8,3404.7,1e-05]
[1721317816554,6.48703,3404.8,3404.7,1e-05]
[1721317817052,3.0,3404.8,3404.7,1e-05]
[1721317817211,5.93694,3404.9,3404.7,1e-05]
[1721317817408,5.87406,3404.8,3404.7,1e-05]
[1721317817614,10.54990651,3404.8,3404.7,1e-05]
[1721317818043,13.79314012,3404.8,3404.7,1e-05]
[1721317818426,14.34314012,3404.8,3404.7,1e-05]
[1721317818945,14.9474221,3404.8,3404.7,1e-05]
[1721317819511,15.24974769,3404.8,3404.7,1e-05]
[1721317819712,14.34314012,3404.8,3404.7,1e-05]
[1721317820166,14.94736816,3404.8,3404.7,1e-05]
[1721317820386,14.34314012,3404.8,3404.7,1e-05]
[1721317820542,18.18677769,3404.8,3404.7,1e-05]
[1721317820747,17.28017012,3404.8,3404.7,1e-05]
[1721317821150,20.58755305,3404.8,3404.7,1e-05]
[1721317821369,14.00428,3404.4,3404.3,0.1477146]
[1721317821678,21.51321315,3404.4,3404.3,0.1477146]
[1721317821971,23.00277593,3404.4,3404.3,0.1477146]
[1721317822142,23.8410044,3404.4,3404.3,0.1477146]
[1721317822337,23.84094069,3404.4,3404.3,0.1477146]
[1721317822536,20.90357069,3404.4,3404.3,0.1477146]
[1721317823151,19.695053,3404.4,3404.3,0.1477146]
[1721317823369,22.632423,3404.4,3404.3,0.1477146]
[1721317823971,24.14332088,3404.4,3404.3,0.1477146]
[1721317824286,24.14332088,3404.4,3404.3,4.6e-06]
[1721317824438,23.00277593,3404.4,3404.3,4.6e-06]
[1721317825172,22.632423,3404.4,3404.3,4.6e-06]
[1721317825354,24.14308526,3404.4,3404.3,4.6e-06]
[1721317825536,22.632423,3404.4,3404.3,4.6e-06]
[1721317825744,19.695053,3404.4,3404.3,4.6e-06]
[1721317825963,22.632423,3404.4,3404.3,4.6e-06]
[1721317826166,24.14325912,3404.4,3404.3,4.6e-06]
[1721317826547,23.00277593,3404.4,3404.3,4.6e-06]
[1721317826945,21.57605385,3404.4,3404.3,4.6e-06]
[1721317827173,23.84102263,3404.4,3404.3,4.6e-06]
[1721317827346,19.695053,3404.4,3404.3,4.6e-06]
[1721317827555,20.90381603,3404.4,3404.3,4.6e-06]
[1721317828250,19.695053,3404.4,3404.3,4.6e-06]
[1721317828456,21.21017233,3404.4,3404.3,4.6e-06]
[1721317828978,20.0014093,3404.4,3404.3,4.6e-06]
[1721317829175,21.21017233,3404.4,3404.3,4.6e-06]
[1721317829676,20.0014093,3404.4,3404.3,4.6e-06]
[1721317830098,24.14809794,3404.4,3404.3,4.6e-06]
[1721317830395,2.93834,3403.3,3403.0,0.2]
[1721317830696,2.93834,3403.3,3403.1,0.03925886]
[1721317831050,5.87637,3403.5,3403.1,0.03925886]
[1721317831361,2.93815,3403.5,3403.0,0.2]
[1721317831567,2.93837,3403.3,3403.0,0.2]
[1721317831797,2.93837,3403.3,3403.1,0.07616545]
[1721317831798,2.93848,3403.2,3403.1,0.07616545]
[1721317832979,5.87696,3403.2,3403.1,0.07616545]
[1721317833386,2.93849,3403.1,3403.0,0.2]
[1721317833693,2.93849,3403.1,3403.0,0.2762183]
[1721317834059,2.93833,3403.3,3403.0,0.2762183]
[1721317834354,2.93841,3403.2,3403.0,0.2762183]
[1721317834774,2.93841,3403.2,3403.0,0.2]
[1721317834980,2.93841,3403.2,3403.1,0.07616545]
[1721317835492,5.87682,3403.2,3403.1,0.07616545]
[1721317835714,5.87682,3403.2,3403.0,0.2]
[1721317835715,5.87698,3403.1,3403.0,0.2]
[1721317836203,5.87698,3403.1,3403.0,0.2762183]
[1721317836401,6.64501006,3403.1,3403.0,0.2762183]
[1721317836602,10.19501006,3403.1,3403.0,0.2]
[1721317837099,13.13350006,3403.1,3403.0,0.2]
[1721317837259,13.738126,3403.1,3403.0,0.2]
[1721317837460,14.04043897,3403.1,3403.0,0.2]
[1721317837667,13.13350006,3403.1,3403.0,0.2]
[1721317837863,14.0410887,3403.1,3403.0,0.2]
[1721317838092,13.13350006,3403.1,3403.0,0.2]
[1721317838294,13.73849688,3403.1,3403.0,0.2]
[1721317838686,14.04415138,3403.1,3403.0,0.2]
[1721317839060,7.56217456,3403.1,3403.0,0.2]
[1721317839264,7.39930328,3403.1,3403.0,0.2]
[1721317839507,6.7941445,3403.1,3403.0,0.27634762]
[1721317839680,9.7326345,3403.1,3403.0,0.27634762]
[1721317839875,10.33779328,3403.1,3403.0,0.2]
[1721317840096,10.33813108,3403.1,3403.0,0.2]
[1721317840304,9.7326345,3403.1,3403.0,0.2]
[1721317840467,10.33803217,3403.1,3403.0,0.2]
[1721317840668,9.7326345,3403.1,3403.0,0.2]
[1721317840890,11.29846825,3403.1,3403.0,0.2]
[1721317841313,9.7326345,3403.1,3403.0,0.2]
[1721317841794,10.33811307,3403.1,3403.0,0.2]
[1721317842183,9.7326345,3403.1,3403.0,0.2]
[1721317842364,10.33811307,3403.1,3403.0,0.2]
[1721317843004,7.39962307,3403.1,3403.0,0.2]
[1721317843303,10.33811307,3403.1,3403.0,0.2]
[1721317843616,6.7941445,3403.1,3403.0,0.2]
[1721317843783,10.85720467,3403.1,3403.0,0.2]
[1721317843985,11.76479331,3403.1,3403.0,0.27377537]
[1721317844188,11.76521519,3403.1,3403.0,0.2]
[1721317844498,12.06645655,3403.1,3403.0,0.2]
[1721317844816,15.00494655,3403.1,3403.0,0.2]
[1721317845033,17.5838749,3403.1,3403.0,0.2]
[1721317845212,16.07009467,3403.1,3403.0,0.2]
[1721317846428,17.58284987,3403.1,3403.0,0.2]
[1721317847520,16.07009467,3403.1,3403.0,0.2]
[1721317848027,2.93965,3401.8,3401.5,2.265]
[1721317848232,2.93966,3401.8,3401.5,2.265]
[1721317848533,5.87951,3401.7,3401.6,0.07009796]
[1721317848685,6.42951,3401.7,3401.6,0.07009796]
[1721317848886,2.94007,3401.3,3401.1,2.4543]
[1721317849124,2.94007,3401.3,3401.2,0.07030957]
[1721317850235,2.93983,3401.6,3401.2,0.07030957]
[1721317851037,5.87969,3401.6,3401.2,0.07030957]
[1721317851212,2.93998,3401.4,3401.2,0.07030957]
[1721317851587,2.9396,3401.9,3401.2,0.33754199]
[1721317851832,5.93963,3401.8,3401.2,3.20735242]
[1721317852027,3.0,3401.8,3401.2,0.26723242]
[1721317852389,3.0,3401.8,3401.3,0.07034066]
[1721317852725,5.93968,3401.8,3401.3,0.07034066]
[1721317853133,2.93992,3401.5,3401.3,0.07034066]
[1721317853492,2.94002,3401.4,3401.1,2.4543]
[1721317853821,2.94002,3401.4,3401.2,0.07039357]
[1721317855151,2.94005,3401.3,3400.9,0.1477146]
[1721317855491,2.94015,3401.2,3400.9,0.1477146]
[1721317855697,2.94031,3401.0,3400.9,0.1477146]
[1721317856187,5.88062,3401.0,3400.9,0.1477146]
[1721317856387,2.94031,3401.0,3400.9,0.1477146]
[1721317856636,3.49031,3401.0,3400.9,0.1477146]
[1721317856821,6.43062,3401.0,3400.9,0.1477146]
[1721317857186,3.49031,3401.0,3400.9,0.1477146]
[1721317857620,6.43062,3401.0,3400.9,0.1477146]
[1721317857818,3.49031,3401.0,3400.9,0.1477146]
[1721317858005,10.1030825,3401.0,3400.9,0.1477146]
[1721317858402,10.40880479,3401.0,3400.9,0.1477146]
[1721317858728,3.55,3401.0,3400.9,0.1477146]
[1721317858932,0.55,3401.0,3400.9,0.1477146]
[1721317859098,5.94031,3401.0,3400.9,0.1477146]
[1721317859519,3.0,3401.0,3400.9,0.1477146]
[1721317859701,5.94029,3401.1,3400.9,0.1477146]
[1721317859900,3.0,3401.1,3400.9,0.1477146]
[1721317860102,2.94008,3401.3,3400.9,0.1477146]
[1721317860338,7.28,3401.6,3400.9,0.1477146]
[1721317860550,2.94014,3401.2,3400.9,0.1477146]
[1721317860733,2.94014,3401.2,3401.0,0.07077213]
[1721317861128,2.94022,3401.1,3401.0,0.07077213]
[1721317861329,5.88062,3401.0,3400.9,0.1477146]
[1721317861720,9.43062,3401.0,3400.9,0.1477146]
[1721317862156,3.55,3401.0,3400.9,0.1477146]
[1721317862777,2.94007,3401.3,3400.9,0.1477146]
[1721317862946,3.0,3401.2,3400.9,0.1477146]
[1721317863151,2.94028,3401.1,3401.0,0.07077213]
[1721317863349,5.94028,3401.1,3401.0,0.07077213]
[1721317863547,3.0,3401.1,3401.0,0.07077213]
[1721317863770,3.03341825,3401.8,3401.0,0.07077213]
[1721317863771,10.52547807,3401.6,3401.0,0.07077213]
[1721317863948,10.21979,3401.6,3401.0,0.07077213]
[1721317864148,2.93988,3401.5,3401.0,0.07077213]
[1721317865074,3.0,3401.4,3401.0,0.07077213]
[1721317865285,2.94005,3401.3,3401.0,0.07077213]
[1721317865655,4.321988,3401.4,3400.9,0.1477146]
[1721317865989,3.0,3401.4,3400.9,0.1477146]
[1721317866145,5.93999,3401.4,3400.9,0.1477146]
[1721317866644,3.0,3401.4,3400.9,0.1477146]
[1721317866868,3.0,3401.5,3400.9,3.0880446]
[1721317867079,10.2198,3401.6,3400.9,3.0880446]
[1721317867245,3.48989,3401.5,3401.0,0.07077213]
[1721317867444,0.55,3401.5,3401.0,0.07077213]
[1721317867645,7.28,3401.6,3401.0,0.07077213]
[1721317867879,7.28,3401.6,3401.0,3.3269138]
[1721317868058,7.28,3401.6,3401.0,0.31588167]
[1721317868444,7.28,3401.6,3401.1,0.07067785]
[1721317868884,7.28,3401.6,3401.1,2.94017]
[1721317869190,7.28,3401.6,3401.2,3.01073425]
[1721317869588,7.28,3402.0,3401.2,0.7120543]
[1721317869793,7.28,3402.0,3401.6,2.93973]
[1721317869953,7.28,3402.0,3401.5,2.93982]
[1721317870150,7.28,3402.0,3401.7,0.07026219]
[1721317870383,7.28,3402.0,3401.6,0.07031508]
[1721317870563,7.28,3402.0,3401.5,2.93984]
[1721317870761,7.28,3402.0,3401.7,0.07026219]
[1721317870970,7.28,3402.0,3401.3,2.94005]
[1721317871278,2.93964,3401.8,3401.2,2.94012]
[1721317871490,0.55,3401.9,3401.2,2.94012]
[1721317871679,7.28,3402.0,3401.2,2.94007]
[1721317871902,7.28,3402.0,3401.8,2.93961]
[1721317872551,7.28,3402.0,3401.7,2.93968]
[1721317872751,0.90722737,3402.3,3401.8,2.3768]
[1721317873075,0.90722737,3402.3,3402.2,5.87854]
[1721317873461,0.90722737,3402.3,3402.2,8.81781]
[1721317873689,0.90722737,3402.3,3402.2,11.19111]
[1721317874498,7.28,3403.0,3402.9,5.87732]
[1721317874654,2.10855993,3403.1,3403.0,2.93858]
[1721317875159,2.10855993,3403.1,3403.0,5.87716]
[1721317875376,2.10855993,3403.1,3403.0,8.31984878]
[1721317877373,2.10855993,3403.1,3403.0,11.25842878]
[1721317879810,2.10855993,3403.1,3403.0,17.19700878]
[1721317880008,2.10855993,3403.1,3403.0,19.22968286]
[1721317880214,2.4910479,3403.6,3403.5,8.81445]
[1721317880397,2.4910479,3403.6,3403.5,14.2946]
[1721317880598,7.9e-06,3403.6,3403.5,14.36325125]
[1721317880795,7.9e-06,3403.6,3403.5,22.71470125]
[1721317880986,7.9e-06,3403.6,3403.5,23.50455183]
[1721317881883,7.9e-06,3403.6,3403.5,20.56640183]
[1721317883445,8.78853979,3405.4,3405.1,2.93671]
[1721317883732,1.50853979,3405.4,3405.0,2.93684]
[1721317883914,1.50853979,3405.4,3405.2,0.0676412]
[1721317884417,1.50853979,3405.4,3405.1,2.93676]
[1721317884619,1.50853979,3405.4,3405.3,0.06758842]
[1721317884808,1.50853979,3405.4,3405.1,2.93676]
[1721317885131,1.50853979,3405.4,3405.3,0.06758842]
[1721317885329,1.50853979,3405.4,3405.2,0.0676412]
[1721317885541,1.50853979,3405.4,3405.3,2.93659]
[1721317885699,1.50853979,3405.4,3405.3,5.87318]
[1721317885901,1.50853979,3405.4,3405.3,5.94076842]
[1721317886100,1.50853979,3405.4,3405.3,3.00417842]
[1721317886431,1.50853979,3405.4,3404.3,2.542]
[1721317886734,1.50853979,3405.4,3405.3,0.06758842]
[1721317887028,1.50853979,3405.4,3404.9,2.93689]
[1721317887228,1.50853979,3405.4,3405.3,3.00417842]
[1721317887434,1.50853979,3405.4,3405.3,5.87318]
[1721317887647,1.50853979,3405.4,3405.3,5.94045359]
[1721317888201,1.50853979,3405.4,3405.3,6.52818559]
[1721317888715,1.50853979,3405.4,3405.3,9.46477559]
[1721317888918,1.50853979,3405.4,3405.3,9.52818559]
[1721317889124,1.50853979,3405.4,3405.3,0.06727359]
[1721317889631,1.50853979,3405.4,3405.3,0.06708275]
[1721317889829,1.50853979,3405.4,3404.9,2.93688]
[1721317890032,1.50853979,3405.4,3405.3,0.06708275]
[1721317890251,4.44504979,3405.4,3404.8,2.93703]
[1721317890464,1.50853979,3405.4,3405.3,0.06708532]
[1721317890757,1.50853979,3405.4,3405.3,5.87318]
[1721317891057,1.50853979,3405.4,3405.3,9.75790262]
[1721317891722,1.50853979,3405.4,3405.3,6.82131262]
[1721317892122,1.50853979,3405.4,3405.3,3.88472262]
[1721317892945,2.93596,3406.1,3405.4,2.93645]
[1721317893151,5.87154,3406.3,3405.5,2.93637]
[1721317893319,2.93558,3406.5,3405.8,2.93614]
[1721317893524,0.55,3406.4,3405.7,2.93617]
[1721317893725,7.28,3406.6,3405.9,2.93607]
[1721317893919,7.28,3406.6,3405.5,2.93636]
[1721317893920,2.9359,3406.2,3405.5,2.93636]
[1721317894146,2.93592,3406.1,3406.0,0.0667546]
[1721317894356,2.93592,3406.1,3405.5,2.93636]
[1721317894555,2.93592,3406.1,3406.0,0.0667546]
[1721317894767,2.9358,3406.3,3405.5,2.93636]
[1721317894950,2.9358,3406.3,3406.0,0.0667546]
[1721317895269,2.93584,3406.2,3406.1,0.06670184]
[1721317895426,2.93584,3406.2,3405.5,2.93636]
[1721317895761,1.47182859,3406.3,3406.1,0.06670184]
[1721317896063,7.58588589,3406.6,3406.2,0.06664909]
[1721317896269,7.58588589,3406.6,3405.9,2.936]
[1721317896270,7.28,3406.6,3405.9,2.93602]
[1721317896759,7.28,3406.6,3406.0,3.002723]
[1721317896920,7.28,3406.6,3406.0,0.066743]
[1721317897259,2.4181,3406.0,3404.4,0.293968]
[1721317897555,1.0854,3405.9,3404.6,2.9372]
[1721317897768,2.93674,3405.2,3404.4,2.9373]
[1721317897979,5.42157,3405.1,3404.4,2.93732]
[1721317898266,2.4848,3405.1,3404.2,2.93752]
[1721317898467,2.93708,3404.8,3404.1,2.93763]
[1721317898681,2.93708,3404.8,3404.0,2.93768]
[1721317898682,2.93712,3404.7,3404.0,2.93768]
[1721317899034,2.93694,3404.9,3404.2,2.93753]
[1721317899468,2.93694,3404.9,3404.0,2.93768]
[1721317899670,2.93694,3404.9,3403.8,2.93786]
[1721317899671,6.3981,3405.1,3403.8,2.93786]
[1721317899857,6.3981,3405.1,3403.5,0.78985058]
[1721317899858,2.93746,3404.3,3403.7,2.93797]
[1721317900170,2.93755,3404.2,3403.5,0.78985058]
[1721317900377,2.93755,3404.2,3403.4,2.93821]
[1721317900580,7.28,3404.6,3402.9,2.4529]
[1721317900736,2.93795,3403.8,3403.1,2.93842]
[1721317900937,2.93795,3403.8,3402.4,2.393]
[1721317900938,2.3085,3404.1,3402.9,2.93865]
[1721317901135,2.93826,3403.4,3402.7,2.93882]
[1721317901340,2.93842,3403.2,3402.7,0.58778]
[1721317901639,5.21802,3403.2,3402.4,2.93909]
[1721317901974,2.2796,3403.2,3402.6,2.9389]
[1721317902348,2.2796,3403.2,3401.6,2.93973]
[1721317902349,2.2796,3403.2,3402.7,2.93882]
[1721317902669,9.5596,3403.7,3402.8,2.9387]
[1721317902842,2.93821,3403.5,3402.7,2.93884]
[1721317903037,2.93825,3403.4,3402.7,2.93884]
[1721317903267,9.5596,3403.7,3402.8,2.93875]
[1721317903474,0.55,3403.6,3402.6,2.93887]
[1721317903779,2.93822,3403.5,3402.8,2.93874]
[1721317903979,0.55,3403.6,3402.7,0.06840325]
[1721317904275,2.93858,3403.0,3402.8,0.06835039]
[1721317904584,2.9384,3403.3,3402.5,2.93892]
[1721317904741,2.93841,3403.2,3402.5,2.93896]
[1721317905245,2.93841,3403.2,3402.6,0.06845611]
[1721317905440,2.93841,3403.2,3402.4,2.93909]
[1721317905645,2.93861,3403.0,3402.5,0.06850898]
[1721317905886,2.93861,3403.0,3402.4,2.93909]
[1721317906089,2.93861,3403.0,3402.6,0.06845611]
[1721317906244,2.93845,3403.2,3402.5,3.00751898]
[1721317906761,2.93827,3403.4,3402.7,2.93878]
[1721317906955,9.5596,3403.7,3402.5,0.06850898]
[1721317907164,9.5596,3403.7,3403.0,2.93856]
[1721317907469,12.49766,3403.7,3403.1,0.06819183]
[1721317907645,12.49766,3403.7,3403.0,2.93856]
[1721317907845,12.49758,3403.7,3403.1,0.06819183]
[1721317908049,12.49758,3403.7,3402.8,2.93873]
[1721317908281,2.93835,3403.3,3402.9,0.06829753]
[1721317908597,2.93849,3403.1,3402.9,0.06829753]
[1721317908879,2.93835,3403.3,3402.6,2.93889]
[1721317909092,2.93864,3403.0,3402.3,2.93917]
[1721317909245,2.93867,3402.9,3402.7,0.06840325]
[1721317909589,2.93895,3402.6,3402.0,2.93943]
[1721317909751,2.4289,3402.8,3402.1,2.93935]
[1721317909944,5.36767,3402.8,3402.2,2.93927]
[1721317910561,2.93889,3402.7,3402.0,2.93938]
[1721317911247,2.4289,3402.8,3402.1,2.93934]
[1721317911587,5.36766,3402.8,3402.1,2.93934]
[1721317911882,2.4289,3402.8,3402.3,2.93912]
[1721317912056,2.4289,3402.8,3402.2,2.9392]
[1721317912256,2.4289,3402.8,3402.1,2.93934]
[1721317912459,2.4289,3402.8,3402.1,0.385723]
[1721317912460,5.36765,3402.8,3402.1,0.385723]
[1721317912759,5.36765,3402.8,3402.0,2.93942]
[1721317912760,2.93889,3402.7,3402.0,2.93942]
[1721317912956,5.36765,3402.8,3402.0,2.93942]
[1721317913280,2.93884,3402.7,3402.1,2.93934]
[1721317914389,2.93894,3402.6,3402.0,2.93944]
[1721317914599,2.4289,3402.8,3400.8,2.2714]
[1721317914600,0.55,3402.5,3400.9,3.0880446]
[1721317914754,2.93933,3402.2,3401.5,2.93982]
[1721317915257,2.93936,3402.1,3401.5,2.93982]
[1721317915458,2.93954,3401.9,3401.2,2.9401]
[1721317915772,2.2817,3401.8,3401.2,3.59650491]
[1721317915976,2.2817,3401.8,3401.3,2.94003]
[1721317917593,2.2817,3401.8,3401.3,2.94004]
[1721317917892,2.2817,3401.8,3401.5,2.93981]
[1721317918589,2.2817,3401.8,3401.3,2.94004]
[1721317920292,2.2817,3401.8,3401.4,0.0699113]
[1721317920491,2.2817,3401.8,3401.5,2.93986]
[1721317920677,2.2817,3401.8,3401.6,2.93978]
[1721317920892,2.2817,3401.8,3400.9,3.0880746]
[1721317920893,2.2817,3401.8,3401.7,0.06993734]
[1721317921384,2.2817,3401.8,3401.5,2.93987]
[1721317921605,2.2817,3401.8,3401.7,0.06993734]
[1721317921751,2.2817,3401.8,3401.5,2.93987]
[1721317921752,2.2817,3401.8,3401.6,0.06999023]